bitfinex-derivatives/quotes_SOLF0:USTF0_20250623
["timestamp","ask_amount","ask_price","bid_price","bid_amount"]
[1750699356812,21.45004722,135.02,134.95,3.14209909]
[1750699357020,7.4067,134.96,134.9,21.45004722]
[1750699357219,7.4067,134.96,134.88,56.9544]
[1750699357220,54.56,134.96,134.91,3.14358134]
[1750699357418,54.56,135.0,134.97,7.4058]
[1750699357607,54.56,135.0,134.95,21.45004722]
[1750699358013,54.56,135.0,134.93,21.45004722]
[1750699358215,21.45004722,134.99,134.9,21.45004722]
[1750699358418,21.45004722,134.97,134.91,3.13311552]
[1750699358710,21.45004722,134.95,134.86,21.45004722]
[1750699358910,640.44,134.94,134.88,7.4106]
[1750699359113,21.45004722,134.93,134.83,2.3944]
[1750699359317,21.45004722,134.91,134.84,3.13709688]
[1750699359516,21.45004722,134.89,134.8,155.52669345]
[1750699359824,56.6381,134.88,134.8,134.07664623]
[1750699360024,21.45004722,134.87,134.79,7.4157]
[1750699360337,21.45004722,134.87,134.77,21.45004722]
[1750699360338,640.38,134.86,134.77,21.45004722]
[1750699361627,640.38,134.86,134.79,21.45004722]
[1750699362033,640.38,134.86,134.81,21.45004722]
[1750699362233,640.38,134.86,134.76,54.14]
[1750699362534,640.38,134.86,134.85,7.4124]
[1750699362737,640.38,134.86,134.82,21.45004722]
[1750699362932,640.38,134.86,134.78,62.0]
[1750699363131,640.38,134.86,134.81,21.45004722]
[1750699363732,2.3969,134.9,134.83,21.45004722]
[1750699363934,2.3969,134.9,134.77,2.3279]
[1750699363935,54.14,134.9,134.85,21.45004722]
[1750699364532,54.14,134.9,134.85,7.4121]
[1750699364728,54.14,134.9,134.83,21.45004722]
[1750699365332,54.14,134.9,134.87,21.45004722]
[1750699365532,54.14,134.9,134.89,7.4102]
[1750699365736,640.36,134.93,134.87,21.45004722]
[1750699365941,54.14,134.92,134.83,2.3107]
[1750699366137,54.14,134.92,134.87,21.45004722]
[1750699366533,54.14,134.92,134.9,7.4096]
[1750699366733,54.14,134.92,134.87,21.45004722]
[1750699367135,54.14,134.92,134.84,62.0]
[1750699367136,54.14,134.92,134.88,7.4107]
[1750699367343,54.14,134.92,134.87,21.45004722]
[1750699368241,54.14,134.92,134.86,21.45004722]
[1750699368640,54.14,134.92,134.89,7.4102]
[1750699368835,54.14,134.92,134.87,21.45004722]
[1750699369039,54.14,134.92,134.89,21.45004722]
[1750699369240,54.14,134.94,134.91,21.45004722]
[1750699369534,58.6933,134.96,134.95,7.4069]
[1750699369735,58.6933,134.96,134.91,21.45004722]
[1750699370038,58.6933,134.96,134.89,21.45004722]
[1750699370234,66.1,134.96,134.89,21.45004722]
[1750699370841,229.4933,134.96,134.87,21.45004722]
[1750699371243,7.4079,134.94,134.89,7.4101]
[1750699371440,7.4079,134.94,134.84,54.14]
[1750699371441,229.4933,134.96,134.84,54.14]
[1750699371646,229.4933,134.96,134.87,21.45004722]
[1750699371840,2.453,134.95,134.87,21.45004722]
[1750699372144,23.90304722,134.95,134.84,21.45004722]
[1750699372345,2.453,134.95,134.86,21.45004722]
[1750699372543,2.453,134.95,134.88,21.45004722]
[1750699372742,2.453,134.95,134.9,7.4094]
[1750699373540,9.8603,134.95,134.9,7.4094]
[1750699373949,9.8603,134.95,134.91,7.409]
[1750699374150,7.4078,134.94,134.87,21.45004722]
[1750699374356,2.453,134.95,134.87,21.45004722]
[1750699374357,2.453,134.95,134.91,7.4088]
[1750699374652,9.8603,134.95,134.91,7.4088]
[1750699375448,9.8603,134.95,134.85,21.45004722]
[1750699375449,21.45004722,134.94,134.85,21.45004722]
[1750699375653,2.453,134.95,134.87,21.45004722]
[1750699375843,7.4082,134.93,134.89,7.4099]
[1750699376038,54.12,134.92,134.89,7.4099]
[1750699376438,61.529,134.92,134.88,7.4105]
[1750699376644,54.12,134.92,134.85,21.45004722]
[1750699376952,7.4095,134.91,134.87,7.411]
[1750699377151,54.12,134.92,134.85,21.45004722]
[1750699377446,54.12,134.92,134.87,21.45004722]
[1750699377657,54.12,134.92,134.85,21.45004722]
[1750699378145,640.14,134.91,134.83,21.45004722]
[1750699378348,21.45004722,134.88,134.78,2.445]
[1750699378555,61.1407,134.87,134.8,21.45004722]
[1750699378942,7.4128,134.85,134.82,7.414]
[1750699379449,61.1407,134.87,134.78,23.89504722]
[1750699379841,61.1407,134.87,134.81,7.4142]
[1750699380040,61.1407,134.87,134.78,21.45004722]
[1750699380041,60.40715965,134.87,134.78,21.45004722]
[1750699380543,54.12,134.89,134.84,21.45004722]
[1750699380848,54.12,134.89,134.82,21.45004722]
[1750699381048,54.12,134.89,134.8,21.45004722]
[1750699381549,54.12,134.89,134.82,21.45004722]
[1750699381741,54.12,134.89,134.84,21.45004722]
[1750699381944,61.5307,134.89,134.85,7.4122]
[1750699382140,54.12,134.89,134.78,62.0]
[1750699382344,7.4117,134.87,134.83,7.4131]
[1750699382552,54.12,134.89,134.82,21.45004722]
[1750699382853,640.14,134.91,134.88,21.45004722]
[1750699383645,640.14,134.91,134.83,7.2045]
[1750699383646,640.14,134.91,134.86,21.45004722]
[1750699383853,640.14,134.91,134.84,21.45004722]
[1750699384166,647.5494,134.91,134.87,7.411]
[1750699384352,640.14,134.91,134.86,21.45004722]
[1750699385152,640.14,134.91,134.88,7.4103]
[1750699385352,640.14,134.91,134.86,21.45004722]
[1750699385544,647.5494,134.91,134.87,7.411]
[1750699385742,640.14,134.91,134.85,21.45004722]
[1750699385944,640.14,134.91,134.83,21.45004722]
[1750699386147,640.14,134.91,134.81,21.45004722]
[1750699386349,191.91004722,134.9,134.81,21.45004722]
[1750699386651,170.46,134.9,134.81,21.45004722]
[1750699386858,640.14,134.91,134.83,21.45004722]
[1750699387161,7.4103,134.89,134.85,7.4122]
[1750699387355,54.12,134.88,134.85,7.4122]
[1750699387655,54.12,134.88,134.86,7.4117]
[1750699387856,54.12,134.88,134.83,21.45004722]
[1750699388359,61.5311,134.88,134.85,7.4121]
[1750699388854,54.12,134.88,134.81,21.45004722]
[1750699389160,54.12,134.88,134.79,2.4246]
[1750699389356,7.4121,134.86,134.82,7.4137]
[1750699389560,54.12,134.88,134.8,21.45004722]
[1750699389760,640.14,134.91,134.82,21.45004722]
[1750699389945,53.74,134.92,134.88,21.45004722]
[1750699390751,53.74,134.92,134.83,2.3671]
[1750699390962,53.74,134.92,134.85,21.45004722]
[1750699391254,53.74,134.92,134.87,21.45004722]
[1750699391450,53.74,134.92,134.88,7.4103]
[1750699391758,53.74,134.92,134.81,226.4871]
[1750699391759,53.74,134.92,134.85,21.45004722]
[1750699391949,7.4094,134.91,134.88,7.4107]
[1750699392559,53.74,134.92,134.88,7.4106]
[1750699392957,53.74,134.92,134.85,21.45004722]
[1750699393163,53.74,134.92,134.86,3.18479681]
[1750699393351,53.74,134.92,134.87,3.18479681]
[1750699393554,6.11270318,134.91,134.88,3.18479681]
[1750699393850,53.74,134.92,134.87,7.4113]
[1750699394163,7.4106,134.89,134.85,7.4122]
[1750699394361,53.74,134.88,134.82,21.45004722]
[1750699394562,53.74,134.88,134.76,708.8145]
[1750699394763,61.151,134.88,134.85,7.4124]
[1750699395064,6.13641451,134.87,134.81,21.45004722]
[1750699395266,53.74,134.88,134.81,21.45004722]
[1750699395564,6.13694296,134.87,134.81,21.45004722]
[1750699395764,6.13694296,134.86,134.81,21.45004722]
[1750699396062,7.4116,134.87,134.83,7.4135]
[1750699396257,53.74,134.88,134.83,7.4135]
[1750699396258,6.14658235,134.86,134.83,7.4135]
[1750699396451,53.74,134.88,134.81,21.45004722]
[1750699396657,53.74,134.88,134.84,7.4127]
[1750699396658,13.56079752,134.87,134.84,7.4127]
[1750699396859,6.14919752,134.86,134.84,7.4127]
[1750699397055,53.74,134.88,134.81,21.45004722]
[1750699397255,6.14929093,134.87,134.79,85.87464722]
[1750699397462,6.14929093,134.86,134.8,3.19813664]
[1750699397655,6.14929093,134.85,134.81,3.19813664]
[1750699397861,53.74,134.88,134.83,7.4133]
[1750699398061,6.15003689,134.87,134.84,3.1984951]
[1750699398258,53.74,134.88,134.85,3.1984951]
[1750699398259,6.15003689,134.86,134.85,3.1984951]
[1750699399371,13.56193689,134.86,134.85,3.1984951]
[1750699399667,6.15003689,134.86,134.85,3.1984951]
[1750699400062,53.74,134.88,134.85,3.1984951]
[1750699400263,640.2,134.9,134.89,7.4102]
[1750699400465,646.34789227,134.9,134.89,7.4102]
[1750699400670,646.34789227,134.9,134.89,3.19439738]
[1750699400869,653.75759227,134.9,134.87,7.4111]
[1750699401071,640.2,134.9,134.88,3.19448048]
[1750699401262,640.2,134.9,134.89,3.19448048]
[1750699401464,646.34846355,134.9,134.89,3.19448048]
[1750699402063,653.19515418,134.9,134.79,2.4246]
[1750699402269,21.45004722,134.88,134.79,23.87464722]
[1750699402470,7.4122,134.86,134.83,7.4133]
[1750699402663,7.4122,134.86,134.77,24.6776]
[1750699402664,6.14846355,134.85,134.77,2.4278]
[1750699402864,6.14846355,134.85,134.76,23.86414722]
[1750699402865,27.59851077,134.84,134.76,2.4141]
[1750699403071,59.88846355,134.83,134.74,23.93894722]
[1750699403267,6.14846355,134.82,134.74,23.93894722]
[1750699403472,7.4153,134.8,134.74,23.93894722]
[1750699403674,28.29673785,134.84,134.74,2.4889]
[1750699403888,21.45004722,134.78,134.64,75.19004722]
[1750699404078,21.45004722,134.76,134.67,21.45004722]
[1750699404281,53.74,134.75,134.68,2.4889]
[1750699404480,640.22,134.79,134.71,21.45004722]
[1750699404786,53.74,134.81,134.75,21.45004722]
[1750699404986,53.74,134.81,134.78,7.4163]
[1750699405378,53.74,134.81,134.75,21.45004722]
[1750699405579,61.1547,134.81,134.76,7.4172]
[1750699405775,27.62049421,134.8,134.7,62.0]
[1750699405975,6.17044699,134.79,134.69,21.45004722]
[1750699406176,27.61769003,134.78,134.68,23.93894722]
[1750699406383,53.76,134.77,134.68,23.93894722]
[1750699406587,2.4402,134.76,134.73,7.4187]
[1750699406882,56.0239,134.77,134.7,21.45004722]
[1750699407083,53.76,134.77,134.76,7.4174]
[1750699407290,53.76,134.77,134.72,21.45004722]
[1750699407478,53.76,134.82,134.75,21.45004722]
[1750699407679,53.76,134.82,134.81,7.4146]
[1750699407884,56.2002,134.86,134.8,21.45004722]
[1750699408289,56.2002,134.86,134.76,2.3354]
[1750699408491,56.2002,134.86,134.79,21.45004722]
[1750699408692,56.2002,134.86,134.8,21.45004722]
[1750699408891,56.2002,134.86,134.77,62.0]
[1750699409086,56.2002,134.86,134.79,21.45004722]
[1750699409287,7.4125,134.85,134.81,7.4143]
[1750699409494,56.2002,134.86,134.81,7.4143]
[1750699409696,56.2002,134.86,134.79,21.45004722]
[1750699409890,7.413,134.84,134.79,21.45004722]
[1750699410194,56.2002,134.86,134.79,21.45004722]
[1750699410394,7.4127,134.85,134.81,7.4143]
[1750699410597,56.2002,134.86,134.77,21.45004722]
[1750699410993,7.4134,134.84,134.8,7.4147]
[1750699411295,7.4134,134.84,134.77,21.45004722]
[1750699411296,56.2002,134.86,134.79,21.45004722]
[1750699411690,63.6124,134.86,134.82,7.4136]
[1750699412091,56.2002,134.86,134.83,7.4134]
[1750699412294,56.2002,134.86,134.79,21.45004722]
[1750699413798,63.6124,134.86,134.82,7.4138]
[1750699413994,56.2002,134.86,134.82,7.4138]
[1750699414196,56.2002,134.86,134.79,21.45004722]
[1750699414390,56.2002,134.86,134.81,7.4144]
[1750699414587,56.2002,134.86,134.79,21.45004722]
[1750699414898,7.4125,134.85,134.81,7.4143]
[1750699415099,56.2002,134.86,134.81,7.4143]
[1750699415295,56.2002,134.86,134.79,21.45004722]
[1750699415500,63.6126,134.86,134.79,21.45004722]
[1750699415802,63.6126,134.86,134.81,21.45004722]
[1750699415803,53.76,134.86,134.81,21.45004722]
[1750699416698,53.76,134.86,134.83,21.45004722]
[1750699417086,53.76,134.86,134.85,7.4124]
[1750699417493,53.76,134.86,134.83,7.4131]
[1750699417692,53.76,134.86,134.82,21.45004722]
[1750699418111,53.76,134.86,134.84,21.45004722]
[1750699418298,53.76,134.86,134.85,7.4124]
[1750699418493,640.4,134.87,134.84,21.45004722]
[1750699419396,640.4,134.87,134.86,7.4119]
[1750699419593,640.4,134.87,134.84,21.45004722]
[1750699419594,53.4,134.89,134.84,21.45004722]
[1750699419803,2.4072,134.92,134.86,21.45004722]
[1750699420005,55.8072,134.92,134.86,21.45004722]
[1750699420807,53.4,134.92,134.86,21.45004722]
[1750699421206,53.4,134.92,134.89,7.4099]
[1750699422103,53.4,134.92,134.83,4.9776]
[1750699422404,53.4,134.92,134.86,21.45004722]
[1750699422707,60.8087,134.92,134.86,21.45004722]
[1750699423007,53.4,134.92,134.86,21.45004722]
[1750699423202,53.4,134.92,134.84,21.45004722]
[1750699423504,21.45004722,134.89,134.79,21.45004722]
[1750699423810,60.5167,134.88,134.81,21.45004722]
[1750699423996,53.4,134.88,134.83,21.45004722]
[1750699424307,53.4,134.91,134.85,21.45004722]
[1750699424604,53.4,134.91,134.87,21.45004722]
[1750699424803,53.4,134.91,134.89,7.41]
[1750699424999,53.4,134.91,134.87,21.45004722]
[1750699425704,693.82,134.94,134.89,21.45004722]
[1750699425903,6.84669063,135.0,134.93,21.45004722]
[1750699426110,6.84669063,135.0,134.95,21.45004722]
[1750699426111,6.16598551,134.99,134.95,21.45004722]
[1750699426309,53.4,135.0,134.99,7.4047]
[1750699426600,640.26,135.01,134.97,21.45004722]
[1750699426795,640.26,135.01,135.0,7.4042]
[1750699427002,55.6997,135.03,134.97,21.45004722]
[1750699427204,55.6997,135.03,134.92,14.8169]
[1750699427401,55.6997,135.03,135.0,7.4038]
[1750699428008,55.6997,135.03,134.96,21.45004722]
[1750699428614,21.45004722,135.02,134.91,7.3321]
[1750699428912,21.45004722,135.0,134.91,2.5047]
[1750699429102,21.45004722,135.0,134.82,36.27744722]
[1750699429103,21.45004722,134.96,134.87,23.95474722]
[1750699429308,55.6832,134.95,134.87,23.95474722]
[1750699429506,55.6832,134.95,134.87,21.45004722]
[1750699429805,21.45004722,134.94,134.84,2.489]
[1750699430013,21.45004722,134.94,134.83,26.24854722]
[1750699430014,7.4106,134.89,134.85,7.4121]
[1750699430312,53.38,134.88,134.85,7.4121]
[1750699430920,53.38,134.88,134.8,2.489]
[1750699431113,53.38,134.88,134.8,21.45004722]
[1750699431316,2.3032,134.87,134.8,21.45004722]
[1750699431504,7.4128,134.85,134.8,21.45004722]
[1750699431706,2.3032,134.87,134.78,26.32424722]
[1750699431914,21.45004722,134.88,134.78,26.32424722]
[1750699431915,53.38,134.88,134.82,21.45004722]
[1750699432108,60.7912,134.88,134.82,21.45004722]
[1750699432605,53.38,134.88,134.82,21.45004722]
[1750699433416,53.38,134.88,134.84,21.45004722]
[1750699433916,695.6987,134.91,134.88,7.4105]
[1750699434323,695.6987,134.91,134.86,21.45004722]
[1750699435110,693.4,134.91,134.86,21.45004722]
[1750699435313,693.4,134.91,134.88,21.45004722]
[1750699435511,693.4,134.91,134.89,7.4099]
[1750699435702,2.4519,134.97,134.89,7.4099]
[1750699435703,53.38,134.96,134.89,21.45004722]
[1750699438116,244.39004722,134.96,134.85,2.3096]
[1750699438415,244.39004722,134.96,134.85,23.75964722]
[1750699438613,6.23011055,134.95,134.88,7.4104]
[1750699438815,27.68015777,134.94,134.83,21.45004722]
[1750699439012,2.2938,134.93,134.83,21.45004722]
[1750699439317,7.4101,134.9,134.83,21.45004722]
[1750699439708,2.3689,134.91,134.83,21.45004722]
[1750699440819,7.4118,134.87,134.83,7.4133]
[1750699441019,74.83004722,134.86,134.75,2.4626]
[1750699441210,2.2938,134.85,134.73,21.45004722]
[1750699441415,21.45004722,134.83,134.73,21.45004722]
[1750699441611,695.9225,134.82,134.72,21.45004722]
[1750699441912,21.45004722,134.81,134.71,21.45004722]
[1750699442112,695.9225,134.82,134.75,21.45004722]
[1750699442411,693.46,134.82,134.8,7.4149]
[1750699442615,53.38,134.82,134.79,21.45004722]
[1750699443125,53.38,134.82,134.78,21.45004722]
[1750699443417,7.416,134.79,134.74,7.4181]
[1750699443613,53.38,134.79,134.72,21.45004722]
[1750699443816,53.38,134.79,134.7,21.45004722]
[1750699444521,7.4178,134.76,134.7,21.45004722]
[1750699444724,53.38,134.75,134.7,21.45004722]
[1750699444923,53.38,134.75,134.69,4.9346]
[1750699445722,53.38,134.75,134.72,7.4194]
[1750699446123,53.38,134.78,134.72,21.45004722]
[1750699446312,640.1,134.81,134.76,21.45004722]
[1750699448023,640.1,134.81,134.79,7.4154]
[1750699448218,640.1,134.81,134.76,21.45004722]
[1750699449323,640.1,134.81,134.78,7.4159]
[1750699449624,640.1,134.81,134.76,21.45004722]
[1750699449830,640.1,134.81,134.78,7.416]
[1750699450921,640.1,134.81,134.79,7.4154]
[1750699451119,640.1,134.81,134.76,21.45004722]
[1750699451715,640.1,134.81,134.75,21.45004722]
[1750699451921,640.1,134.81,134.74,2.343]
[1750699452126,647.515,134.81,134.77,7.4167]
[1750699452425,647.515,134.81,134.74,23.79304722]
[1750699452426,640.1,134.81,134.74,23.79304722]
[1750699452623,7.4153,134.8,134.76,7.4171]
[1750699453022,7.4169,134.77,134.73,7.4186]
[1750699453222,830.87004722,134.81,134.7,21.45004722]
[1750699453223,53.08,134.76,134.7,21.45004722]
[1750699453721,53.08,134.76,134.74,7.4182]
[1750699454526,53.08,134.76,134.73,7.4188]
[1750699454726,53.08,134.76,134.7,21.45004722]
[1750699455820,53.08,134.76,134.69,4.9346]
[1750699456628,53.08,134.76,134.7,21.45004722]
[1750699457418,53.08,134.76,134.75,7.4179]
[1750699457632,53.08,134.76,134.7,21.45004722]
[1750699457633,53.08,134.79,134.74,21.45004722]
[1750699458126,53.08,134.79,134.78,7.4163]
[1750699458327,53.08,134.79,134.74,21.45004722]
[1750699458531,53.08,134.79,134.73,21.45004722]
[1750699459035,53.08,134.79,134.77,7.4164]
[1750699459538,640.1,134.81,134.8,7.4152]
[1750699460935,53.08,134.85,134.84,7.413]
[1750699461125,53.08,134.85,134.82,21.45004722]
[1750699461430,74.53004722,134.85,134.75,21.45004722]
[1750699461630,7.4136,134.83,134.75,21.45004722]
[1750699461931,7.4136,134.83,134.73,4.6648]
[1750699461932,2.4922,134.84,134.79,7.4152]
[1750699462227,2.4922,134.84,134.77,21.45004722]
[1750699462228,7.4144,134.82,134.77,21.45004722]
[1750699462428,53.08,134.81,134.77,7.4164]
[1750699462639,53.08,134.81,134.75,21.45004722]
[1750699462832,7.4155,134.8,134.75,21.45004722]
[1750699463131,53.08,134.81,134.73,4.6648]
[1750699463132,53.08,134.81,134.73,23.82274722]
[1750699463535,7.4155,134.8,134.73,23.82274722]
[1750699463927,7.4158,134.79,134.73,23.82274722]
[1750699464136,7.4158,134.79,134.76,7.4171]
[1750699464433,53.08,134.81,134.73,23.82274722]
[1750699464636,53.08,134.81,134.75,7.4176]
[1750699464827,53.08,134.81,134.73,23.82274722]
[1750699465128,53.08,134.81,134.73,21.45004722]
[1750699465523,7.4171,134.77,134.73,21.45004722]
[1750699465733,60.4971,134.77,134.74,7.4184]
[1750699466034,53.08,134.77,134.73,21.45004722]
[1750699466231,53.08,134.77,134.69,174.0582]
[1750699466436,53.08,134.77,134.73,21.45004722]
[1750699466629,60.4969,134.77,134.73,21.45004722]
[1750699466828,53.08,134.77,134.71,21.45004722]
[1750699467031,53.08,134.77,134.69,23.90524722]
[1750699467228,2.3421,134.76,134.69,23.90524722]
[1750699467634,4.8096,134.76,134.67,21.45004722]
[1750699467940,7.1073,134.76,134.67,21.45004722]
[1750699468530,7.4204,134.71,134.67,21.45004722]
[1750699468733,53.1,134.7,134.67,21.45004722]
[1750699469036,53.1,134.7,134.65,21.45004722]
[1750699470136,640.66,134.74,134.64,21.45004722]
[1750699470337,693.76,134.74,134.69,21.45004722]
[1750699470535,693.76,134.74,134.71,21.45004722]
[1750699470938,693.76,134.74,134.73,7.419]
[1750699472036,2.3868,134.8,134.73,21.45004722]
[1750699472341,53.1,134.8,134.76,21.45004722]
[1750699472541,53.1,134.8,134.79,7.4157]
[1750699472929,2.3868,134.85,134.78,21.45004722]
[1750699473135,53.1,134.88,134.84,21.45004722]
[1750699473538,53.1,134.88,134.84,7.4127]
[1750699473737,53.1,134.88,134.83,21.45004722]
[1750699473938,53.1,134.88,134.85,21.45004722]
[1750699474134,53.1,134.88,134.87,7.4113]
[1750699474734,640.72,134.92,134.87,21.45004722]
[1750699475037,693.8,134.92,134.87,21.45004722]
[1750699475232,693.8,134.92,134.91,21.45004722]
[1750699475427,53.08,134.95,134.91,21.45004722]
[1750699475836,53.08,134.95,134.94,7.4075]
[1750699476039,53.08,134.98,134.93,21.45004722]
[1750699476338,55.4171,135.01,134.97,21.45004722]
[1750699476546,53.08,135.04,134.97,21.45004722]
[1750699476842,53.08,135.04,134.99,21.45004722]
[1750699477441,74.53004722,135.04,134.95,2.347]
[1750699477640,2.4623,135.03,134.95,23.79704722]
[1750699478243,2.4623,135.03,134.97,21.45004722]
[1750699478739,53.08,135.04,134.97,21.45004722]
[1750699479043,4.34466063,135.16,135.03,21.45004722]
[1750699479236,4.34466063,135.16,135.0,21.45004722]
[1750699479237,56.98466063,135.16,135.1,28.84874722]
[1750699479436,56.98466063,135.16,135.08,21.45004722]
[1750699479637,56.98466063,135.16,135.02,52.64]
[1750699479638,21.45004722,135.12,135.02,21.45004722]
[1750699479944,21.45004722,135.08,134.98,21.45004722]
[1750699480146,21.45004722,135.06,134.96,21.45004722]
[1750699480440,52.6,135.05,134.97,21.45004722]
[1750699480844,7.4038,135.01,134.97,21.45004722]
[1750699481047,52.6,135.05,134.97,21.45004722]
[1750699481344,7.4032,135.02,134.97,21.45004722]
[1750699481741,52.6,135.01,134.95,2.347]
[1750699481937,52.6,135.01,134.95,23.79704722]
[1750699482132,52.6,135.01,134.93,21.45004722]
[1750699482339,7.4073,134.95,134.91,21.45004722]
[1750699482740,52.6,134.96,134.91,21.45004722]
[1750699483142,52.6,134.96,134.9,168.7]
[1750699483544,52.6,134.96,134.88,21.45004722]
[1750699484251,52.6,134.96,134.87,39.00833921]
[1750699484450,7.4077,134.94,134.87,39.00833921]
[1750699484957,52.6,134.96,134.87,39.00833921]
[1750699485251,639.88,134.95,134.85,36.54853921]
[1750699485444,7.4084,134.93,134.88,7.4104]
[1750699485643,52.6,134.92,134.88,7.4104]
[1750699486245,60.0087,134.92,134.85,36.54853921]
[1750699486443,639.88,134.95,134.88,36.54853921]
[1750699486649,52.6,134.96,134.91,36.54853921]
[1750699486844,52.6,134.96,134.92,7.4084]
[1750699487154,52.6,134.96,134.91,36.54853921]
[1750699487352,52.6,134.99,134.91,36.54853921]
[1750699487552,52.6,134.99,134.94,36.54853921]
[1750699487861,52.6,134.99,134.95,7.4068]
[1750699488357,52.6,135.04,134.97,36.54853921]
[1750699488546,52.6,135.05,134.97,36.54853921]
[1750699489050,52.6,135.05,135.0,36.54853921]
[1750699489452,52.6,135.08,135.0,36.54853921]
[1750699489852,7.4013,135.06,135.0,43.95263921]
[1750699490254,7.4013,135.06,135.0,36.54853921]
[1750699490444,52.6,135.08,135.0,36.54853921]
[1750699490851,7.4013,135.06,135.01,7.4031]
[1750699491352,52.6,135.08,134.95,62.0]
[1750699491554,52.6,135.08,135.0,36.54853921]
[1750699491750,52.6,135.08,134.95,62.0]
[1750699492052,52.6,135.08,134.98,36.54853921]
[1750699492240,7.4019,135.05,135.0,7.4042]
[1750699492448,52.58,135.04,134.96,36.54853921]
[1750699492749,52.58,135.04,135.01,7.4032]
[1750699493153,52.58,135.04,134.96,36.54853921]
[1750699493944,52.58,135.04,134.92,2.4025]
[1750699493945,36.54853921,135.03,134.92,38.95103921]
[1750699494157,36.54853921,135.03,134.87,2.4636]
[1750699494158,36.54853921,135.0,134.87,2.4636]
[1750699494449,52.58,134.99,134.88,41.15733921]
[1750699495155,52.58,134.99,134.91,36.54853921]
[1750699495365,2.302,135.01,134.91,36.54853921]
[1750699495554,52.58,135.0,134.91,98.54853921]
[1750699495851,52.58,135.0,134.94,36.54853921]
[1750699496053,52.58,135.0,134.91,62.0]
[1750699496241,52.58,135.0,134.93,36.54853921]
[1750699497659,52.58,135.0,134.98,7.4052]
[1750699497852,52.58,135.0,134.93,36.54853921]
[1750699499247,52.58,135.0,134.9,36.54853921]
[1750699499649,7.4084,134.93,134.89,7.41]
[1750699499851,52.58,134.93,134.88,38.86113921]
[1750699500053,52.58,134.93,134.85,36.54853921]
[1750699500261,52.58,134.93,134.87,36.54853921]
[1750699500455,52.58,134.96,134.9,36.54853921]
[1750699501166,52.58,134.99,134.92,36.54853921]
[1750699501860,59.985,134.99,134.95,7.4069]
[1750699502058,52.58,134.99,134.92,36.54853921]
[1750699502265,52.58,134.99,134.88,2.4171]
[1750699502266,639.68,135.02,134.95,36.54853921]
[1750699503152,639.68,135.02,134.94,36.54853921]
[1750699503565,52.6,135.03,134.97,36.54853921]
[1750699504063,52.6,135.03,135.02,7.4031]
[1750699504255,52.6,135.06,135.02,21.28831168]
[1750699505163,692.34,135.09,135.04,21.28831168]
[1750699505359,692.34,135.09,135.0,21.28831168]
[1750699505561,52.58,135.09,135.08,7.3998]
[1750699505751,52.58,135.12,135.03,52.58]
[1750699506064,52.58,135.12,135.06,21.28831168]
[1750699506464,21.28831168,135.11,135.02,21.28831168]
[1750699506663,2.3257,135.11,135.06,7.4009]
[1750699506851,2.3257,135.11,135.04,21.28831168]
[1750699507256,2.3257,135.11,134.97,14.8111]
[1750699507559,23.61401168,135.11,135.01,21.28831168]
[1750699507951,2.3257,135.11,135.01,21.28831168]
[1750699508765,2.3257,135.11,135.03,7.4023]
[1750699509065,2.3257,135.11,135.01,21.28831168]
[1750699509266,7.4002,135.08,135.04,7.4019]
[1750699509565,52.08,135.07,135.01,21.28831168]
[1750699509766,52.08,135.07,135.04,7.4015]
[1750699509961,59.4805,135.07,135.04,7.4015]
[1750699510262,52.08,135.07,135.01,21.28831168]
[1750699510765,52.08,135.07,135.03,21.28831168]
[1750699511060,25.93831168,135.15,135.05,21.28831168]